Cogmind - Beta 14 @@@ ROGUE MODE // 2024.08.27 @ 15:32:39 Player: OctagonalPrism Result: Destroyed by G-47 Trooper with Particle Gun Performance ------------- Evolutions (2) 1000 Regions Visited (5) 1000 Robots Destroyed (6) 30 Value Destroyed (263) 263 Prototype IDs (24) 480 Alien Tech Used (0) 0 Bonus (300) 300 TOTAL SCORE: 3073 Bonus ------- Aligned with FarCom 300 Cogmind --------- Core Integrity 0/550 Matter 290/300 Energy 93/100 System Corruption 0% Temperature Cool (9) Movement Walking (190) Ox1 Location -8/Materials Parts ------- > --- POWER (1) -------- (None) > --- PROPULSION (4) --- Improved Aluminum Leg > --- UTILITY (4) ------ Medium Storage Unit > --- WEAPON (2) ------- Heavy Particle Gun Katana > --- INVENTORY (10) --- Field Lobotomy Kit (4) Peak State ------------ > --- POWER ------------ Light Nuclear Core > --- PROPULSION ------- Aluminum Leg Carbon-fiber Leg > --- UTILITY ---------- Heat Sink Medium Storage Unit > --- WEAPON ----------- Small Laser Minigun > --- INVENTORY -------- Field Lobotomy Kit [Rating: 14] Favorites ----------- Power Light Nuclear Core Engine Ion Engine Power Core Light Nuclear Core Propulsion Carbon-fiber Leg Treads Light Treads Leg Carbon-fiber Leg Utility Small Storage Unit Device Heat Sink Storage Small Storage Unit Weapon Small Laser Energy Gun Small Laser Ballistic Gun Assault Rifle Special Weapon Mining Laser Slashing Weapon Katana Build | -11 -10 -10 -10 -9 -8 ------- Run | Yrd Mat Min Exi Min Mat Slots Evolved 4 | . . . . . 4 Power . | . . . . . . Propulsion 2 | . . . . . 2 Utility 2 | . . . . . 2 Weapon . | . . . . . . Parts Attached 20 | 6 2 5 . 1 6 Power 2 | 1 . 1 . . . Engine 1 | 1 . . . . . Core 1 | . . 1 . . . Reactor . | . . . . . . Propulsion 6 | 2 . 2 . . 2 Treads 2 | 2 . . . . . Leg 4 | . . 2 . . 2 Wheel . | . . . . . . Hover . | . . . . . . Flight . | . . . . . . Utility 3 | 1 . 1 . 1 . Device 1 | . . 1 . . . Storage 2 | 1 . . . 1 . Processor . | . . . . . . Hackware . | . . . . . . Protection . | . . . . . . Artifact . | . . . . . . Weapon 9 | 2 2 1 . . 4 Energy Gun 3 | . 1 1 . . 1 Energy Cannon . | . . . . . . Ballistic Gun 3 | 2 . . . . 1 Ballistic Cannon . | . . . . . . Launcher . | . . . . . . Special Weapon 2 | . 1 . . . 1 Impact Weapon . | . . . . . . Slashing Weapon 1 | . . . . . 1 Piercing Weapon . | . . . . . . Special Melee Weapon . | . . . . . . Unidentified Prototypes 1 | . . . . . 1 Parts Lost 14 | . 6 1 . . 7 Power 2 | . 1 . . . 1 Propulsion 5 | . 2 . . . 3 Utility 1 | . . . . . 1 Weapon 6 | . 3 1 . . 2 Highest Loss Streak 6 | . 6 1 . . 6 To Critical Strikes 1 | . . . . . 1 Average Slot Usage (%) 65 | . 67 52 85 85 36 Engine 1 | . 9 . . . . Core 7 | . . 6 14 14 3 Treads 4 | . 22 . . . . Leg 15 | . . 13 28 28 9 Device 7 | . . 6 14 14 5 Storage 13 | . 14 14 14 14 9 Energy Gun 8 | . . 7 14 14 4 Ballistic Gun 4 | . 20 . . . 3 Special Weapon 1 | . . 5 . . . Peak Build Rating 14 | 6 6 10 11 11 14 Average Rating 7 | 4 4 5 10 11 8 On Entrance 6 | . 6 2 10 11 11 Naked Turns . | . . . . . . Heaviest Build 20 | 14 14 12 12 17 20 Greatest Support 40 | 40 40 25 25 25 25 Greatest Overweight (x) 4 | . 1 1 . . 4 Average Overweight (x) . | . . . . . . Largest Inventory Capacity 10 | 8 8 8 8 10 10 Average Capacity 8 | 7 8 8 8 8 10 Most Carried 2 | . . . 1 2 1 Average Carried . | . . . . 1 . Final Capacity 10 | 8 8 8 8 10 10 Final Carried 1 | . . . 1 1 1 Class Distribution -------------------- 54% | Scavenger-Mutant 45% | Mutant Dominant Class ---------------- Mutant | -10/Materials Mutant | -10/Mines Scavenger-Mutant | -10/Exiles Scavenger-Mutant | -9/Mines Mutant | -8/Materials Resources | -11 -10 -10 -10 -9 -8 ----------- Run | Yrd Mat Min Exi Min Mat Matter Collected 497 | 260 98 66 . . 73 Remotely . | . . . . . . Salvage Created 265 | . 171 45 . . 49 Parts 9 | . 6 1 . . 2 Haulers Intercepted . | . . . . . . Recyclers Shooed . | . . . . . . Parts Field Recycled . | . . . . . . Retrieved Matter . | . . . . . . Parts Self-Destructed . | . . . . . . Prevented . | . . . . . . Kills | -11 -10 -10 -10 -9 -8 ------- Run | Yrd Mat Min Exi Min Mat Combat Hostiles Destroyed 6 | . 4 1 . . 1 Guns 6 | . 4 1 . . 1 Classes Destroyed 2 | . 1 . . . 1 Grunt 5 | . 4 1 . . . Duelist 1 | . . . . . 1 Best Kill Streak 3 | . 3 1 . . 1 Combat Bots Only 3 | . 3 1 . . 1 Max Kills in Single Turn 1 | . 1 1 . . 1 Gunslinging . | . . . . . . Exploded . | . . . . . . Melee . | . . . . . . Uniques/NPCs Destroyed . | . . . . . . Combat | -11 -10 -10 -10 -9 -8 -------- Run | Yrd Mat Min Exi Min Mat Hostile Shots Fired 197 | . 96 25 . . 76 Missed 57 | . 29 11 . . 17 Damage Taken 2182 | . 901 188 . . 1093 Core 793 | . 178 63 . . 552 Absorbed by Shields . | . . . . . . Core Remaining (%) 51 | 100 . . . 3 . Volleys Fired 51 | . 25 11 . . 15 Largest 2 | . 2 1 . . 2 Hottest 100 | . 60 100 . . 65 Shots Fired 76 | . 44 11 . . 21 Gun 71 | . 44 7 . . 20 Cannon . | . . . . . . Launcher . | . . . . . . Special 5 | . . 4 . . 1 Kinetic 56 | . 43 . . . 13 Thermal 19 | . 1 11 . . 7 Explosive . | . . . . . . Electromagnetic . | . . . . . . Robot Hit Streak 9 | . 6 4 . . 9 Robot Miss Streak 4 | . 3 4 . . 2 Penetration Max . | . . . . . . Secondary Targets 1 | . 1 . . . . Max Gunslinging Chain 1 | . 1 . . . . Shots Hit Robots 51 | . 29 5 . . 17 Core Hits 17 | . 10 1 . . 6 Critical Kills . | . . . . . . Critical Parts Destroyed . | . . . . . . Critical Strikes . | . . . . . . Melee Attacks . | . . . . . . Impact . | . . . . . . Slashing . | . . . . . . Piercing . | . . . . . . Sneak Attacks . | . . . . . . Combat Hostiles . | . . . . . . Follow-up Attacks . | . . . . . . Damage Inflicted 732 | . 397 55 . . 280 Guns 730 | . 397 53 . . 280 Cannons . | . . . . . . Explosions . | . . . . . . Melee . | . . . . . . Ramming 2 | . . 2 . . . Kinetic 590 | . 386 . . . 204 Thermal 140 | . 11 53 . . 76 Explosive . | . . . . . . Electromagnetic . | . . . . . . Impact . | . . . . . . Slashing . | . . . . . . Piercing . | . . . . . . Highest Corruption . | . . . . . . Average Corruption . | . . . . . . Corruption Purged . | . . . . . . Corruption Blocked . | . . . . . . Overload Shots . | . . . . . . Overflow Damage . | . . . . . . Projectiles . | . . . . . . Explosions . | . . . . . . Melee . | . . . . . . Knockbacks . | . . . . . . Impact . | . . . . . . Kinetic . | . . . . . . Secondary . | . . . . . . Self-Inflicted Damage 1 | . . 1 . . . Shots . | . . . . . . Rammed 1 | . . 1 . . . Targets Rammed 2 | . . 1 . . 1 Kicked 1 | . . . . . 1 Crushed . | . . . . . . Highest Temperature 33 | . 30 33 . . 32 Average Temperature 8 | . 5 14 . . 9 Received Heat Transfer 1080 | . 501 129 . . 450 Siege Activations . | . . . . . . Robots Corrupted . | . . . . . . Combat Hostiles . | . . . . . . Parts Fried . | . . . . . . Impact Corruptions . | . . . . . . Robots Melted . | . . . . . . Combat Hostiles . | . . . . . . Parts Melted . | . . . . . . Heat Transferred 312 | . 25 125 . . 162 Parts Sabotaged . | . . . . . . Parts Stolen . | . . . . . . Parts Stripped . | . . . . . . Power Chain Reactions . | . . . . . . Alert | -11 -10 -10 -10 -9 -8 ------- Run | Yrd Mat Min Exi Min Mat Peak Influence 181 | . 181 150 . . 42 Initial 52 | . . 52 . . . Average 54 | . 91 86 . . 4 Maximum Alert Level . | . . . . . . Low Security (%) 100 | 100 100 100 . 100 100 Level 1 . | . . . . . . Level 2 . | . . . . . . Level 3 . | . . . . . . Level 4 . | . . . . . . Level 5 . | . . . . . . High Security . | . . . . . . Max Security . | . . . . . . Squads Dispatched 2 | . 2 . . . . Investigation 2 | . 2 . . . . Extermination . | . . . . . . Reinforcement . | . . . . . . Assault . | . . . . . . Garrison . | . . . . . . Intercept . | . . . . . . Searches Triggered . | . . . . . . Construction Impeded . | . . . . . . Haulers Reinforced . | . . . . . . Active Scanning Responses . | . . . . . . Cargo Convoy Interrupts . | . . . . . . Stealth | -11 -10 -10 -10 -9 -8 --------- Run | Yrd Mat Min Exi Min Mat Distress Signals 3 | . 2 . . 1 . Communications Jammed . | . . . . . . Distress Signals . | . . . . . . Times Spotted 26 | . 13 6 . 3 4 Peak Tracking Total 9 | . 9 2 . 2 3 Tactical Retreats 4 | . 1 3 . . . Traps | -11 -10 -10 -10 -9 -8 ------- Run | Yrd Mat Min Exi Min Mat Traps Triggered 1 | . 1 . . . . Indirectly 1 | . 1 . . . . Trap Hack Attempts . | . . . . . . Triggered . | . . . . . . Disarmed . | . . . . . . Reprogrammed . | . . . . . . Reused . | . . . . . . Traps Extracted . | . . . . . . Installed . | . . . . . . Triggered . | . . . . . . Machines | -11 -10 -10 -10 -9 -8 ---------- Run | Yrd Mat Min Exi Min Mat Machines Disabled 2 | . 2 . . . . Max in Single Turn 2 | . 2 . . . . Machines Repaired . | . . . . . . Machines Dismantled . | . . . . . . Machines Sabotaged . | . . . . . . Overloaded Fab Kills . | . . . . . . Hacking | -11 -10 -10 -10 -9 -8 --------- Run | Yrd Mat Min Exi Min Mat Machines Accessed 4 | . 2 . 1 . 1 Terminals 3 | . 2 . . . 1 Fabricators . | . . . . . . Repair Stations . | . . . . . . Recycling Units . | . . . . . . Scanalyzers . | . . . . . . Garrison Access . | . . . . . . Total Hacks 11 | . 8 . 1 . 2 Successful 5 | . 3 . 1 . 1 Failed 6 | . 5 . . . 1 Catastrophic . | . . . . . . Database Lockouts . | . . . . . . Manual 9 | . 6 . 1 . 2 Terminals 10 | . 8 . . . 2 Fabricators . | . . . . . . Repair Stations . | . . . . . . Recycling Units . | . . . . . . Scanalyzers . | . . . . . . Garrison Access . | . . . . . . Terminal Hacks 2 | . 1 . 1 . . Locate Traps 1 | . 1 . . . . Derelict Proto ID Bank 1 | . . . 1 . . Fabricator Hacks . | . . . . . . Repair Station Hacks . | . . . . . . Recycling Unit Hacks . | . . . . . . Scanalyzer . | . . . . . . Garrison Access Hacks . | . . . . . . Unauthorized Hacks 3 | . 2 . . . 1 Terminals 3 | . 2 . . . 1 Botnet 2 | . 2 . . . . Disrupt 1 | . . . . . 1 Fabricators . | . . . . . . Repair Stations . | . . . . . . Recycling Units . | . . . . . . Scanalyzers . | . . . . . . Garrison Access . | . . . . . . Data Cores Recovered . | . . . . . . Used . | . . . . . . Hacking Detections 2 | . 2 . . . . Full Trace Events 1 | . 1 . . . . Feedback Events . | . . . . . . Feedback Blocked . | . . . . . . Robot Schematics Acquired . | . . . . . . Robots Built . | . . . . . . Authchips . | . . . . . . Time . | . . . . . . Total Robot Build Rating . | . . . . . . Part Schematics Acquired . | . . . . . . Parts Built . | . . . . . . Authchips . | . . . . . . Time . | . . . . . . Total Part Build Rating . | . . . . . . Parts Repaired . | . . . . . . Time . | . . . . . . Parts Recycled . | . . . . . . Recycled Matter . | . . . . . . Retrieved Matter . | . . . . . . Retrieved Components . | . . . . . . Parts Scanalyzed . | . . . . . . Part Schematics Acquired . | . . . . . . Parts Damaged . | . . . . . . Bothacking | -11 -10 -10 -10 -9 -8 ------------ Run | Yrd Mat Min Exi Min Mat Used RIF Installer . | . . . . . . Robots Hacked . | . . . . . . Non-combat . | . . . . . . Combat . | . . . . . . Robot Hacks Applied . | . . . . . . Relay Couplers Released . | . . . . . . Fabnet Peak Effective % . | . . . . . . Robots Rewired . | . . . . . . Allies Hacked . | . . . . . . Hacks Repelled . | . . . . . . Allies | -11 -10 -10 -10 -9 -8 -------- Run | Yrd Mat Min Exi Min Mat Total Allies 4 | . . . . 3 1 Largest Group 3 | . . . . 3 1 Highest-Rated Group 40 | . . . . 40 16 Highest-Rated Ally 16 | . . . . 16 16 Total Orders . | . . . . . . Ally Attacks 12 | . . . . 10 2 Total Damage 169 | . . . . 136 33 Kills 1 | . . . . 1 . Allies Corrupted . | . . . . . . Allies Melted . | . . . . . . Field Lobotomies 1 | . . . . . 1 Intel | -11 -10 -10 -10 -9 -8 ------- Run | Yrd Mat Min Exi Min Mat Robot Analysis Total . | . . . . . . Derelict Logs Recovered . | . . . . . . Drone Launches . | . . . . . . Drone Recoveries . | . . . . . . Exploration | -11 -10 -10 -10 -9 -8 ------------- Run | Yrd Mat Min Exi Min Mat Turns Passed 1446 | 74 254 473 249 253 143 Spaces Moved 1026 | 45 133 365 207 208 68 Core 255 | 5 51 185 . . 14 Treads 122 | 40 82 . . . . Legs 649 | . . 180 207 208 54 Wheels . | . . . . . . Hover . | . . . . . . Flight . | . . . . . . Fastest Speed 50 | 50 100 100 120 120 120 Average Speed 121 | 147 136 109 120 120 139 Slowest Speed 250 | 160 160 120 120 120 250 Overloaded Moves . | . . . . . . Propulsion Burnouts . | . . . . . . Robots Hopped . | . . . . . . Cave-ins Triggered . | . . . . . . Exploration Rate (%) 37 | 3 33 70 62 48 9 Regions Visited 5 Branch Regions 3 Pre-discovered Areas . | . . . . . . Known Exits Taken . | . . . . . . Unknown Exits Taken 5 | 1 1 1 1 1 . Scrap Searched . | . . . . . . Spaces Dug 1 | . . 1 . . . Terrain Destroyed 3 | . . 3 . . . Melee . | . . . . . . Projectile 3 | . . 3 . . . AOE . | . . . . . . Terrain Rammed . | . . . . . . Walls Destroyed . | . . . . . . Machines Disabled . | . . . . . . Actions | -11 -10 -10 -10 -9 -8 --------- Run | Yrd Mat Min Exi Min Mat Total 1136 | 50 159 415 207 211 94 Wait 39 | . . 34 . 2 3 Move 1021 | 44 132 364 206 207 68 Hop . | . . . . . . Pick Up 1 | . . . 1 . . Fast Attach 18 | 6 2 5 . . 5 Attach 1 | . . . . . 1 Detach 1 | . . . . . 1 Swap 1 | . . . . 1 . Drop 1 | . . . . 1 . Fire 51 | . 25 11 . . 15 Melee . | . . . . . . Ram 1 | . . 1 . . . Kick 1 | . . . . . 1 Crush . | . . . . . . Escape Stasis . | . . . . . . Rewire . | . . . . . . Trap . | . . . . . . Miscellaneous . | . . . . . . Route ------- -11/Scrapyard -10/Materials -10/Mines (discovered 2 exits: [*Mat] / *Exi) -10/Exiles -9/Mines -8/Materials History --------- Turn | Location | Event 37 | -11/Scrapyard | Discovered new exit (range 15) 75 | -11/Scrapyard | Entered Materials 270 | -10/Materials | Core integrity fell below 50% 305 | -10/Materials | Build established: Mutant 305 | -10/Materials | Discovered new exit (range 16) 315 | -10/Materials | Lost 6 parts (1p2n3w) 329 | -10/Materials | Entered Mines 370 | -10/Mines | Met a Derelict bent on vengeance 412 | -10/Mines | Discovered new exit (range 3) 515 | -10/Mines | Core integrity fell below 20% 797 | -10/Mines | Deemed a non-threat by the Exiles lab entrance 797 | -10/Mines | Discovered new exit (range 5) 802 | -10/Mines | Entered Exiles 832 | -10/Exiles | Met 8R-AWN 853 | -10/Exiles | Met EX-HEX 884 | -10/Exiles | Met EX-BIN 901 | -10/Exiles | Aligned with FarCom system 902 | -10/Exiles | Given EX-Vault access code 904 | -10/Exiles | Build established: Scavenger-Mutant 930 | -10/Exiles | Opened EX-Vault 937 | -10/Exiles | Found Field Lobotomy Kit 962 | -10/Exiles | Warned to stay clear of 0b10 Research branches 980 | -10/Exiles | Exiles lab attacked by MAIN.C 1036 | -10/Exiles | Discovered new exit (range 14) 1051 | -10/Exiles | Left Exiles lab with Field Lobotomy Kit 1051 | -10/Exiles | Entered Mines 1085 | -9/Mines | Assisted by bots powering up and referring to "LRC-V3" 1120 | -9/Mines | Assembled infested the area 1131 | -9/Mines | Found a damaged Exp. Sensor Array with a note attached 1199 | -9/Mines | Lost 3 allies 1284 | -9/Mines | Discovered new exit (range 14) 1304 | -9/Mines | Entered Materials 1304 | -8/Materials | Evolved 4 slots: Propulsion x2, Utility x2 1394 | -8/Materials | Core integrity fell below 50% 1394 | -8/Materials | Assimilated G-47 Trooper with FLK Orb 1412 | -8/Materials | Lost 6 parts (1p2n1u2w) 1433 | -8/Materials | Core integrity fell below 20% 1447 | -8/Materials | Destroyed by G-47 Trooper with Particle Gun Last Messages --------------- Trooper 3a destroyed. Acquired 48 matter. Acquired Aluminum Leg. Electrolysis Chamber disabled. Critical hit (Destroy). Aluminum Leg destroyed. Acquired Prototype Energy Gun. Identified Hvy. Particle Gun. L-31 Rogue destroyed. Acquired Katana. Connecting with Terminal... Current location identified: Materials >>Trojan(Disrupt) Trojan loaded successfully. Testing... Disruption routine running. Acquired 25 matter. Terminal disabled. Critical hit (Burn: +37). Acquired Imp. Aluminum Leg. Map ----- +----------------------------------------------------+ | ?????????????????????????????????????????????????? | | ?????????????????????????????????????????????????? | | ?????????????????????????????????????????????????? | | ?????????????????????????????????????????????????? | | ?????????????????????????????????????????????????? | | ?????????????????????????????????????????????????? | | ?????????????????????????????????????????????????? | | ?????????????????????????????????????????????????? | | ?????????????????????????????????????????????????? | | ?????????????????????????????????????????????????? | | ?????????????????????????????????????????????????? | | ?????????????????????????????????????????????????? | | ??????????????????????????????????? ???????????? | | ??????????????????????????????????# #??????????? | | ???????????g?????????????????????? #??????????? | | ??????????????????????????????????# #??????????? | | ??????????????????????????????????# #??????????? | | ??????????????????????????????????# #??????????? | | ??????????????????????????????##### #??????????? | | ??????????????????????????????#! !# #??????????? | | ??????????????????????????????# # #??????????? | | ??????????????????????#########!! #w #??????????? | | ??????????????????????# ##!! # #??????????? | | ??????????????????????# % ## # #??????????? | | ??????????????????????# ## !# +??????????? | | ??????????????????????# @ ## # ########???? | | ??????????????????????# ###/## ## #???? | | ????????g?????????????# """rg# #???? | | ??????????????????????# """ r ! #???? | | ??????????g???????????# """Y # #???? | | ??????????????????????# # ####### ! #???? | | ????????H?????????????# "" # #?????## ###### | | ??????????????????????# """ # #??????# # | | ??????????????????????# """ # #??????+ + | | ??????????????????????# # #??????# *# | | ???????????????????????# ##### #??????# %# | | ???????????????????????##????# #??????# + | | ????????????????????????????? #??????# ###### | | ????????????????????????????? #??????# ###### | | ???????????????????????????? #??????# # | | ???????????????????????????? #??????# # """" | | ????????????????????????????? #??????# # """" | | ????????????????????????????? +??????# # """" | | ?????????????????????????????? ???????# + """" | | ????????????????????????????????????????# # """" | | ????????????????????????????????????????# # """" | | ????????????????????????????????????????##### """" | | ????????????????????????????????????????????# | | ????????????????????????????????????????????###### | | ?????????????????????????????????????????????????? | +----------------------------------------------------+ Best States ------------- Heat Dissipation 41 Energy Generation 14 Energy Capacity 250 Matter Stores 300 Matter Capacity 300 Sight Range 16 Terrain Scan Density 10 Evasion (%) 55 Recoil Reduction 2 Item Schematics ----------------- None Robot Schematics ------------------ None Fabricated ------------ Nothing Alien Tech Used ----------------- None Achievements -------------- None Challenges ------------ None Game ------ Seed ThermicComponentBrace Manual? 0 Play Time 00:12:59 Cumulative 81.4 hours Start 2024.08.27 @ 15:21:21 End 2024.08.27 @ 15:32:39 Sessions 1 Manual Loads 0 Difficulty Rogue Special Mode None Game No. 76 Rogue 76 Adventurer 0 Explorer 0 Win Type - Total 0 Types 0/0/0/0/0/0/0/0/0 Lore% 24 Gallery% 48 Achievement% 37 Wizard Run 0 Options --------- Layout 2 ASCII 0 Keyboard 0 Movement Arrows Keybinds 0 Fullscreen 1 Font 16/Terminus Map View 55x47 Zoom Use 0% Tactical HUD 0 Map Filters NONE Filters NONE Steam 1 RUN: 72634a83-1acc-4909-bc15-06643fd8dbca